[Event "Panchenko Memorial-B 2020"]
[Site "Chelyabinsk"]
[Date "2020.09.07"]
[Round "1.3"]
[White "Kovaleva, Ekaterina"]
[Black "Guseva, Marina"]
[Result "0-1"]
[ECO "B18"]
[WhiteElo "1959"]
[BlackElo "2378"]
[Annotator "ChessBase"]
[PlyCount "100"]
[EventDate "2020.09.07"]
[EventType "swiss"]
[EventCountry "RUS"]
[SourceTitle "playchess.com"]
[Source "ChessBase"]
[SourceQuality "1"]
[TimeControl "5400+30"]

1. e4 {[%emt 0:00:00]} c6 {[%emt 0:00:00]} 2. d4 {[%emt 0:00:00]} d5 {[%emt 0:00:00]} 3. Nc3 {[%emt 0:00:00]} dxe4 {[%emt 0:00:00]} 4. Nxe4 {[%emt 0:00:00]} Bf5 {[%emt 0:00:00]} 5. Ng3 {[%emt 0:00:00]} Bg6 {[%emt 0:00:00]} 6. Bc4 {[%emt 0:00:21]} e6 {[%emt 0:00:00]} 7. N1e2 {[%emt 0:00:12]} Nf6 {[%emt 0:00:41]} 8. O-O {[%emt 0:00:12]} Bd6 {[%emt 0:00:09]} 9. f4 {[%emt 0:01:16]} Qd7 {[%emt 0:06:11]} 10. c3 {[%emt 0:13:38]} O-O {[%emt 0:01:12]} 11. Bd3 {[%emt 0:00:28]} Bxd3 {[%emt 0:08:53]} 12. Qxd3 {[%emt 0:00:04]} g6 {[%emt 0:01:41]} 13. f5 {[%emt 0:37:20]} exf5 {[%emt 0:00:07]} 14. Nxf5 {[%emt 0:06:48]} gxf5 {[%emt 0:00:09]} 15. Rxf5 {[%emt 0:00:06]} Ne8 {[%emt 0:05:35]} 16. Bh6 {[%emt 0:01:39]} f6 {[%emt 0:03:31]} 17. Bxf8 {[%emt 0:00:32]} Bxf8 {[%emt 0:00:31]} 18. Ng3 {[%emt 0:02:38]} Qe6 {[%emt 0:06:32]} 19. Rh5 {[%emt 0:13:10]} Qf7 {[%emt 0:00:26]} 20. Re1 {[%emt 0:00:17]} Nd7 {[%emt 0:00:21]} 21. Re4 {[%emt 0:01:18]} Nd6 {[%emt 0:26:56]} 22. Rg4+ {[%emt 0:00:18]} Kh8 {[%emt 0:00:08]} 23. Rgh4 {[%emt 0:00:36]} h6 {[%emt 0:00:14]} 24. Qd2 {[%emt 0:01:06]} Kg8 {[%emt 0:01:38]} 25. Rg4+ {[%emt 0:09:03]} Kh7 {[%emt 0:00:34]} 26. c4 {[%emt 0:02:03]} Re8 {[%emt 0:15:24]} 27. c5 {[%emt 0:00:39]} Nc4 {[%emt 0:07:21]} 28. Qc1 {[%emt 0:00:18]} Ne3 {[%emt 0:02:11]} 29. Rgh4 {[%emt 0:00:30]} Qg6 {[%emt 0:00:40]} 30. Rf4 {[%emt 0:06:13]} f5 {[%emt 0:07:51]} 31. Rf3 {[%emt 0:01:13]} Nf6 {[%emt 0:01:54]} 32. Rh4 {[%emt 0:01:05]} Nfd5 {[%emt 0:00:24]} 33. Qb1 {[%emt 0:01:11]} Bg7 {[%emt 0:01:44]} 34. Rf2 {[%emt 0:00:48]} f4 {[%emt 0:02:49]} 35. Qxg6+ {[%emt 0:00:02]} Kxg6 {[%emt 0:00:03]} 36. Ne2 {[%emt 0:00:17]} Kg5 {[%emt 0:00:23]} 37. g3 {[%emt 0:01:59]} fxg3 {[%emt 0:00:34]} 38. hxg3 {[%emt 0:00:14]} Ng4 {[%emt 0:00:59]} 39. Rf7 {[%emt 0:00:03]} Bf6 {[%emt 0:00:34]} 40. Nc3 {[%emt 0:00:48]} Bxd4+ {[%emt 0:00:16]} 41. Kg2 {[%emt 0:00:32]} Nxc3 {[%emt 0:00:42]} 42. bxc3 {[%emt 0:00:14]} Bxc3 {[%emt 0:00:39]} 43. Rxb7 {[%emt 0:01:25]} Re2+ {[%emt 0:00:20]} 44. Kf3 {[%emt 0:00:17]} Re3+ {[%emt 0:00:16]} 45. Kg2 {[%emt 0:00:03]} Be5 {[%emt 0:00:34]} 46. Rb3 {[%emt 0:01:29]} Re2+ {[%emt 0:00:03]} 47. Kf3 {[%emt 0:00:19]} Rf2+ {[%emt 0:00:05]} 48. Ke4 {[%emt 0:00:02]} Bxg3 {[%emt 0:00:49]} 49. Rh1 {[%emt 0:00:47]} Rf4+ {[%emt 0:00:10]} 50. Kd3 {[%emt 0:00:20]} Nf2+ {[%emt 0:00:03]} 0-1

[Event "Panchenko Memorial-B 2020"]
[Site "Chelyabinsk"]
[Date "2020.09.07"]
[Round "1.4"]
[White "Garifullina, Leya"]
[Black "Arbynova, Agniya"]
[Result "1-0"]
[ECO "C42"]
[WhiteElo "2357"]
[BlackElo "1831"]
[Annotator "ChessBase"]
[PlyCount "95"]
[EventDate "2020.09.07"]
[EventType "swiss"]
[EventCountry "RUS"]
[SourceTitle "playchess.com"]
[Source "ChessBase"]
[SourceQuality "1"]
[TimeControl "5400+30"]

1. e4 {[%emt 0:00:00]} e5 {[%emt 0:00:00]} 2. Nf3 {[%emt 0:00:00]} Nf6 {[%emt 0:00:00]} 3. Nxe5 {[%emt 0:00:04]} d6 {[%emt 0:00:00]} 4. Nf3 {[%emt 0:00:09]} Nxe4 {[%emt 0:00:00]} 5. d4 {[%emt 0:00:11]} d5 {[%emt 0:00:04]} 6. Bd3 {[%emt 0:00:07]} Be7 {[%emt 0:00:25]} 7. O-O {[%emt 0:00:15]} O-O {[%emt 0:00:26]} 8. Re1 {[%emt 0:00:12]} Bg4 {[%emt 0:07:05]} 9. Bxe4 {[%emt 0:03:28]} dxe4 {[%emt 0:00:06]} 10. Rxe4 {[%emt 0:00:04]} f5 {[%emt 0:03:36]} 11. Re1 {[%emt 0:00:11]} Nc6 {[%emt 0:02:31]} 12. c3 {[%emt 0:00:08]} Qd5 {[%emt 0:36:43]} 13. Nbd2 {[%emt 0:00:23]} Bg5 {[%emt 0:11:25]} 14. Qb3 {[%emt 0:02:41]} Qxb3 {[%emt 0:01:41]} 15. Nxb3 {[%emt 0:00:35]} Bxc1 {[%emt 0:02:04]} 16. Raxc1 {[%emt 0:00:16]} Bxf3 {[%emt 0:00:15]} 17. gxf3 {[%emt 0:00:07]} Rae8 {[%emt 0:01:30]} 18. Nc5 {[%emt 0:07:00]} b6 {[%emt 0:01:48]} 19. Na6 {[%emt 0:00:56]} Rc8 {[%emt 0:02:07]} 20. Re2 {[%emt 0:02:21]} Rfd8 {[%emt 0:06:11]} 21. Rce1 {[%emt 0:01:34]} Nb8 {[%emt 0:08:55]} 22. Nxb8 {[%emt 0:01:45]} Rxb8 {[%emt 0:00:01]} 23. Re7 {[%emt 0:00:08]} Rbc8 {[%emt 0:00:38]} 24. Kg2 {[%emt 0:00:26]} Rd6 {[%emt 0:05:00]} 25. h4 {[%emt 0:00:25]} Rg6+ {[%emt 0:00:57]} 26. Kh3 {[%emt 0:00:13]} Rf6 {[%emt 0:00:50]} 27. Rd7 {[%emt 0:00:48]} Rf7 {[%emt 0:02:54]} 28. Ree7 {[%emt 0:00:15]} Rxe7 {[%emt 0:00:04]} 29. Rxe7 {[%emt 0:00:05]} Kf8 {[%emt 0:00:07]} 30. Rd7 {[%emt 0:00:07]} a5 {[%emt 0:00:22]} 31. a4 {[%emt 0:00:18]} c5 {[%emt 0:00:27]} 32. d5 {[%emt 0:00:14]} Rb8 {[%emt 0:00:49]} 33. c4 {[%emt 0:00:06]} Re8 {[%emt 0:00:30]} 34. Rb7 {[%emt 0:00:12]} Re2 {[%emt 0:00:45]} 35. Rxb6 {[%emt 0:00:05]} Rxf2 {[%emt 0:00:30]} 36. Kg3 {[%emt 0:00:04]} Rc2 {[%emt 0:00:43]} 37. b3 {[%emt 0:01:19]} Rc3 {[%emt 0:00:46]} 38. Rb7 {[%emt 0:00:12]} Rd3 {[%emt 0:00:18]} 39. Kf4 {[%emt 0:00:08]} h6 {[%emt 0:01:19]} 40. h5 {[%emt 0:00:14]} Ke8 {[%emt 0:00:56]} 41. Rb5 {[%emt 0:00:44]} Kd7 {[%emt 0:00:40]} 42. Rxa5 {[%emt 0:00:13]} Rxb3 {[%emt 0:00:20]} 43. Rxc5 {[%emt 0:00:05]} Ra3 {[%emt 0:00:23]} 44. a5 {[%emt 0:00:05]} Ke7 {[%emt 0:01:39]} 45. Rc7+ {[%emt 0:00:17]} Kf6 {[%emt 0:00:21]} 46. Rc6+ {[%emt 0:00:07]} Ke7 {[%emt 0:00:04]} 47. a6 {[%emt 0:00:06]} Kd7 {[%emt 0:00:39]} 48. Rg6 {[%emt 0:00:36]} 1-0

[Event "Panchenko Memorial-B 2020"]
[Site "Chelyabinsk"]
[Date "2020.09.07"]
[Round "1.5"]
[White "Komissarova, Soigina"]
[Black "Tomilova, Elena"]
[Result "0-1"]
[ECO "A22"]
[WhiteElo "1827"]
[BlackElo "2353"]
[Annotator "ChessBase"]
[PlyCount "84"]
[EventDate "2020.09.07"]
[EventType "swiss"]
[EventCountry "RUS"]
[SourceTitle "playchess.com"]
[Source "ChessBase"]
[SourceQuality "1"]
[TimeControl "5400+30"]

1. c4 {[%emt 0:00:00]} e5 {[%emt 0:00:02]} 2. Nc3 {[%emt 0:00:00]} Nf6 {[%emt 0:00:09]} 3. g3 {[%emt 0:00:19]} c6 {[%emt 0:00:10]} 4. Bg2 {[%emt 0:03:02]} d5 {[%emt 0:00:20]} 5. cxd5 {[%emt 0:00:41]} cxd5 {[%emt 0:00:05]} 6. d4 {[%emt 0:02:12]} exd4 {[%emt 0:02:17]} 7. Qxd4 {[%emt 0:00:18]} Nc6 {[%emt 0:00:13]} 8. Qa4 {[%emt 0:02:26]} d4 {[%emt 0:03:02]} 9. Ne4 {[%emt 0:06:40]} Nxe4 {[%emt 0:05:15]} 10. Bxe4 {[%emt 0:00:14]} Bb4+ {[%emt 0:00:16]} 11. Kf1 {[%emt 0:00:49]} Qb6 {[%emt 0:00:48]} 12. Kg2 {[%emt 0:02:38]} O-O {[%emt 0:02:46]} 13. Nf3 {[%emt 0:01:32]} Re8 {[%emt 0:04:51]} 14. Qc2 {[%emt 0:03:41]} h6 {[%emt 0:00:15]} 15. a3 {[%emt 0:06:46]} Be7 {[%emt 0:01:22]} 16. b4 {[%emt 0:13:24]} Bf6 {[%emt 0:02:22]} 17. Bb2 {[%emt 0:00:37]} a5 {[%emt 0:08:19]} 18. bxa5 {[%emt 0:05:00]} Nxa5 {[%emt 0:08:44]} 19. Bd3 {[%emt 0:02:25]} Bd7 {[%emt 0:09:09]} 20. Rab1 {[%emt 0:00:58]} Rac8 {[%emt 0:03:21]} 21. Qd1 {[%emt 0:01:17]} Qe6 {[%emt 0:07:20]} 22. h4 {[%emt 0:04:22]} Bc6 {[%emt 0:01:00]} 23. Re1 {[%emt 0:09:52]} Nc4 {[%emt 0:03:03]} 24. Bxc4 {[%emt 0:06:57]} Qxc4 {[%emt 0:00:02]} 25. Rc1 {[%emt 0:01:28]} Qd5 {[%emt 0:07:26]} 26. Qd2 {[%emt 0:04:32]} Rcd8 {[%emt 0:07:23]} 27. Qd3 {[%emt 0:09:00]} Bb5 {[%emt 0:00:20]} 28. Qd2 {[%emt 0:01:24]} Qe6 {[%emt 0:02:04]} 29. Kh2 {[%emt 0:06:02]} Qf5 {[%emt 0:03:37]} 30. Kg2 {[%emt 0:02:50]} Bc6 {[%emt 0:02:10]} 31. Rc4 {[%emt 0:02:47]} Re4 {[%emt 0:02:35]} 32. Kg1 {[%emt 0:00:25]} Bb5 {[%emt 0:01:43]} 33. Rc7 {[%emt 0:00:34]} Bc6 {[%emt 0:01:21]} 34. Qb4 {[%emt 0:01:07]} Qd5 {[%emt 0:03:37]} 35. Rxc6 {[%emt 0:00:34]} bxc6 {[%emt 0:00:12]} 36. Nd2 {[%emt 0:00:21]} Ree8 {[%emt 0:00:22]} 37. Qa4 {[%emt 0:00:33]} Qa2 {[%emt 0:00:43]} 38. Nc4 {[%emt 0:00:14]} Ra8 {[%emt 0:01:16]} 39. Qb4 {[%emt 0:00:51]} c5 {[%emt 0:00:57]} 40. Qb5 {[%emt 0:00:34]} Reb8 {[%emt 0:00:28]} 41. Qxc5 {[%emt 0:00:22]} Rc8 {[%emt 0:00:10]} 42. Ra1 {[%emt 0:00:38]} Qxa1+ {[%emt 0:00:12]} 0-1

[Event "Panchenko Memorial-B 2020"]
[Site "Chelyabinsk"]
[Date "2020.09.08"]
[Round "2.2"]
[White "Zherebtsova, Alexandra"]
[Black "Bivol, Alina"]
[Result "0-1"]
[ECO "D85"]
[WhiteElo "2187"]
[BlackElo "2386"]
[Annotator "RC"]
[PlyCount "72"]
[EventDate "2020.09.07"]
[EventType "swiss"]
[EventCountry "RUS"]
[SourceTitle "playchess.com"]
[Source "ChessBase"]
[SourceQuality "1"]
[TimeControl "5400+30"]

1. d4 {[%emt 0:01:07]} Nf6 {[%emt 0:00:00]} 2. c4 {[%emt 0:00:05]} g6 {[%emt 0:00:03]} 3. Nc3 {[%emt 0:00:07]} d5 {[%emt 0:00:49]} 4. cxd5 {[%emt 0:00:04]} Nxd5 {[%emt 0:00:03]} 5. Bd2 {[%emt 0:00:17]} Nb6 {[%emt 0:00:07]} 6. Bg5 {[%emt 0:05:58]} Bg7 {[%emt 0:01:13]} 7. Nf3 {[%emt 0:00:07]} h6 {[%emt 0:01:35]} 8. Bh4 {[%emt 0:00:23]} c5 {[%emt 0:03:15]} 9. dxc5 {[%emt 0:08:21]} Bxc3+ {[%emt 0:04:03]} 10. bxc3 {[%emt 0:00:02]} Qxd1+ {[%emt 0:00:11]} 11. Rxd1 {[%emt 0:06:09]} Na4 {[%emt 0:00:27]} 12. Rd4 {[%emt 0:30:00]} Nxc5 {[%emt 0:00:47]} 13. e3 {[%emt 0:05:53]} Nc6 {[%emt 0:04:28]} 14. Bb5 {[%emt 0:04:30]} Bd7 {[%emt 0:01:37]} 15. Rd5 {[%emt 0:04:58]} Ne6 {[%emt 0:01:09]} 16. Ba4 {[%emt 0:07:24]} Rc8 {[%emt 0:06:01]} 17. O-O {[%emt 0:02:11]} Nb8 {[%emt 0:02:43]} 18. Bxd7+ {[%emt 0:05:26]} Nxd7 {[%emt 0:02:10]} 19. Rfd1 {[%emt 0:01:49]} Ndc5 {[%emt 0:03:01]} 20. Nd4 {[%emt 0:06:01]} f6 {[%emt 0:01:52]} 21. f3 {[%emt 0:02:46]} Kf7 {[%emt 0:01:08]} 22. Be1 {[%emt 0:02:16]} b6 {[%emt 0:04:21]} 23. Ne2 {[%emt 0:04:26]} h5 {[%emt 0:02:10]} 24. e4 {[%emt 0:00:16]} Rc7 {[%emt 0:01:56]} 25. Kf2 {[%emt 0:01:00]} Rhc8 {[%emt 0:00:14]} 26. Ke3 {[%emt 0:00:15]} Na4 {[%emt 0:00:24]} 27. Rb1 {[%emt 0:00:53]} a6 {[%emt 0:02:35]} 28. f4 {[%emt 0:00:39]} Rc4 {[%emt 0:01:35]} 29. f5 {[%emt 0:00:30]} gxf5 {[%emt 0:00:19]} 30. Rxf5 {[%emt 0:00:23]} Ng5 {[%emt 0:02:24]} 31. Rf4 {[%emt 0:00:31]} b5 {[%emt 0:00:05]} 32. Rd1 {[%emt 0:00:37]} R8c5 {[%emt 0:01:13]} 33. g4 {[%emt 0:00:33]} e5 {[%emt 0:01:53]} 34. Rf5 {[%emt 0:00:17]} Rxe4+ {[%emt 0:00:07]} 35. Kf2 {[%emt 0:00:08]} Rxg4 {[%emt 0:00:06]} 36. Ng3 {[%emt 0:00:43]} Ke6 {[%emt 0:01:54]} 0-1

[Event "Panchenko Memorial-B 2020"]
[Site "Chelyabinsk"]
[Date "2020.09.08"]
[Round "2.4"]
[White "Chigaeva, Anastasia"]
[Black "Garifullina, Leya"]
[Result "0-1"]
[ECO "E19"]
[WhiteElo "2175"]
[BlackElo "2357"]
[Annotator "ChessBase"]
[PlyCount "130"]
[EventDate "2020.09.07"]
[EventType "swiss"]
[EventCountry "RUS"]
[SourceTitle "playchess.com"]
[Source "ChessBase"]
[SourceQuality "1"]
[TimeControl "5400+30"]

1. d4 {[%emt 0:00:00]} Nf6 {[%emt 0:00:00]} 2. c4 {[%emt 0:00:00]} e6 {[%emt 0:00:00]} 3. Nf3 {[%emt 0:00:00]} b6 {[%emt 0:00:01]} 4. g3 {[%emt 0:00:30]} Ba6 {[%emt 0:00:11]} 5. Qa4 {[%emt 0:01:48]} Bb7 {[%emt 0:00:48]} 6. Bg2 {[%emt 0:00:40]} Be7 {[%emt 0:00:10]} 7. O-O {[%emt 0:00:53]} O-O {[%emt 0:00:07]} 8. Nc3 {[%emt 0:01:10]} Ne4 {[%emt 0:00:08]} 9. Qc2 {[%emt 0:21:43]} Nxc3 {[%emt 0:00:54]} 10. Qxc3 {[%emt 0:01:24]} c5 {[%emt 0:00:27]} 11. dxc5 {[%emt 0:06:02]} bxc5 {[%emt 0:00:08]} 12. Rd1 {[%emt 0:02:55]} d6 {[%emt 0:01:41]} 13. Bf4 {[%emt 0:04:26]} Qc7 {[%emt 0:02:02]} 14. Qc2 {[%emt 0:04:32]} h6 {[%emt 0:07:20]} 15. e4 {[%emt 0:02:59]} Nc6 {[%emt 0:00:17]} 16. a3 {[%emt 0:04:22]} a5 {[%emt 0:03:24]} 17. b3 {[%emt 0:09:04]} a4 {[%emt 0:06:27]} 18. bxa4 {[%emt 0:10:09]} e5 {[%emt 0:04:40]} 19. Bd2 {[%emt 0:03:07]} Ra7 {[%emt 0:01:08]} 20. Rab1 {[%emt 0:03:01]} Rfa8 {[%emt 0:03:25]} 21. Qb3 {[%emt 0:03:14]} Bc8 {[%emt 0:02:11]} 22. a5 {[%emt 0:09:50]} Nxa5 {[%emt 0:00:46]} 23. Bxa5 {[%emt 0:00:08]} Rxa5 {[%emt 0:00:07]} 24. Rd3 {[%emt 0:01:00]} Qa7 {[%emt 0:00:46]} 25. Ne1 {[%emt 0:01:18]} Be6 {[%emt 0:00:35]} 26. Nc2 {[%emt 0:01:18]} Ra4 {[%emt 0:00:54]} 27. Rc3 {[%emt 0:01:49]} Qa6 {[%emt 0:04:00]} 28. Qb7 {[%emt 0:02:32]} Qa5 {[%emt 0:03:17]} 29. Qb3 {[%emt 0:03:17]} Kh7 {[%emt 0:01:45]} 30. h4 {[%emt 0:00:58]} Bd8 {[%emt 0:01:00]} 31. Ne3 {[%emt 0:00:26]} Rxa3 {[%emt 0:01:26]} 32. Qxa3 {[%emt 0:00:10]} Qxa3 {[%emt 0:00:03]} 33. Rxa3 {[%emt 0:00:05]} Rxa3 {[%emt 0:00:02]} 34. Rb8 {[%emt 0:00:29]} Ba5 {[%emt 0:00:57]} 35. Ra8 {[%emt 0:00:32]} Ra1+ {[%emt 0:00:55]} 36. Kh2 {[%emt 0:01:10]} Bc3 {[%emt 0:00:14]} 37. Rxa1 {[%emt 0:00:11]} Bxa1 {[%emt 0:00:02]} 38. Nd5 {[%emt 0:01:11]} Bxd5 {[%emt 0:00:20]} 39. exd5 {[%emt 0:00:28]} f5 {[%emt 0:00:19]} 40. h5 {[%emt 0:00:31]} g6 {[%emt 0:00:20]} 41. hxg6+ {[%emt 0:00:32]} Kxg6 {[%emt 0:00:04]} 42. Bf1 {[%emt 0:00:27]} Kg5 {[%emt 0:00:41]} 43. Kg2 {[%emt 0:00:29]} h5 {[%emt 0:00:55]} 44. Kf3 {[%emt 0:00:28]} Bd4 {[%emt 0:00:47]} 45. Bh3 {[%emt 0:00:35]} e4+ {[%emt 0:00:18]} 46. Kg2 {[%emt 0:00:35]} f4 {[%emt 0:00:05]} 47. gxf4+ {[%emt 0:00:11]} Kxf4 {[%emt 0:00:04]} 48. Bd7 {[%emt 0:00:12]} Bf6 {[%emt 0:00:13]} 49. Be8 {[%emt 0:00:42]} h4 {[%emt 0:00:08]} 50. Bd7 {[%emt 0:00:40]} Ke5 {[%emt 0:00:06]} 51. Bg4 {[%emt 0:00:41]} Kd4 {[%emt 0:00:08]} 52. Be2 {[%emt 0:00:06]} Kc3 {[%emt 0:00:04]} 53. Bf1 {[%emt 0:00:55]} Bd4 {[%emt 0:00:14]} 54. Be2 {[%emt 0:00:30]} Kd2 {[%emt 0:00:05]} 55. Bg4 {[%emt 0:00:28]} Kd3 {[%emt 0:00:19]} 56. Bf5 {[%emt 0:00:14]} Kxc4 {[%emt 0:00:05]} 57. Bxe4 {[%emt 0:00:05]} Bf6 {[%emt 0:00:07]} 58. Kf1 {[%emt 0:01:05]} Kd4 {[%emt 0:00:42]} 59. Bg2 {[%emt 0:00:17]} Kc3 {[%emt 0:00:07]} 60. Ke1 {[%emt 0:00:18]} c4 {[%emt 0:00:10]} 61. Bf1 {[%emt 0:01:02]} Kb3 {[%emt 0:00:15]} 62. Kd1 {[%emt 0:00:34]} c3 {[%emt 0:00:23]} 63. Bd3 {[%emt 0:00:02]} Kb2 {[%emt 0:00:13]} 64. f4 {[%emt 0:00:37]} h3 {[%emt 0:00:06]} 65. Be4 {[%emt 0:00:03]} h2 {[%emt 0:00:03]} 0-1

[Event "Panchenko Memorial-B 2020"]
[Site "Chelyabinsk"]
[Date "2020.09.08"]
[Round "2.5"]
[White "Tomilova, Elena"]
[Black "Petrukhina, Olga"]
[Result "1-0"]
[ECO "D37"]
[WhiteElo "2353"]
[BlackElo "2134"]
[Annotator "ChessBase"]
[PlyCount "107"]
[EventDate "2020.09.07"]
[EventType "swiss"]
[EventCountry "RUS"]
[SourceTitle "playchess.com"]
[Source "ChessBase"]
[SourceQuality "1"]
[TimeControl "5400+30"]

1. d4 {[%emt 0:00:00]} d5 {[%emt 0:00:00]} 2. c4 {[%emt 0:00:00]} e6 {[%emt 0:00:00]} 3. Nc3 {[%emt 0:00:00]} Be7 {[%emt 0:00:00]} 4. Nf3 {[%emt 0:00:00]} Nf6 {[%emt 0:00:00]} 5. Bf4 {[%emt 0:00:02]} O-O {[%emt 0:00:00]} 6. e3 {[%emt 0:00:06]} Nbd7 {[%emt 0:00:26]} 7. c5 {[%emt 0:00:23]} Nh5 {[%emt 0:01:51]} 8. Bd3 {[%emt 0:00:40]} Nxf4 {[%emt 0:02:21]} 9. exf4 {[%emt 0:00:06]} c6 {[%emt 0:05:16]} 10. O-O {[%emt 0:01:13]} b6 {[%emt 0:00:20]} 11. b4 {[%emt 0:00:16]} a5 {[%emt 0:00:27]} 12. a3 {[%emt 0:00:23]} Ba6 {[%emt 0:01:55]} 13. g3 {[%emt 0:03:01]} Bf6 {[%emt 0:10:16]} 14. Bxa6 {[%emt 0:02:00]} Rxa6 {[%emt 0:00:02]} 15. Qd3 {[%emt 0:02:14]} Qa8 {[%emt 0:19:25]} 16. Rab1 {[%emt 0:06:42]} axb4 {[%emt 0:02:09]} 17. axb4 {[%emt 0:00:06]} Ra3 {[%emt 0:01:27]} 18. Rfc1 {[%emt 0:01:22]} g6 {[%emt 0:08:14]} 19. Ne5 {[%emt 0:10:21]} Bxe5 {[%emt 0:02:44]} 20. fxe5 {[%emt 0:00:09]} bxc5 {[%emt 0:10:46]} 21. bxc5 {[%emt 0:01:43]} Rb8 {[%emt 0:02:11]} 22. Qc2 {[%emt 0:04:48]} Rxb1 {[%emt 0:03:11]} 23. Qxb1 {[%emt 0:00:21]} Qa5 {[%emt 0:02:05]} 24. Qb2 {[%emt 0:01:10]} h5 {[%emt 0:01:39]} 25. h4 {[%emt 0:00:59]} Kg7 {[%emt 0:01:07]} 26. Kg2 {[%emt 0:01:13]} Kg8 {[%emt 0:04:06]} 27. Nb1 {[%emt 0:04:52]} Ra1 {[%emt 0:10:10]} 28. Rc2 {[%emt 0:02:17]} Qa6 {[%emt 0:01:21]} 29. Rc3 {[%emt 0:01:24]} Ra2 {[%emt 0:02:59]} 30. Qb3 {[%emt 0:02:28]} Ra4 {[%emt 0:06:40]} 31. Rd3 {[%emt 0:06:19]} Rb4 {[%emt 0:00:12]} 32. Qxb4 {[%emt 0:06:19]} Qxd3 {[%emt 0:00:01]} 33. Nc3 {[%emt 0:00:19]} Nf8 {[%emt 0:01:25]} 34. Na4 {[%emt 0:05:55]} Qe4+ {[%emt 0:00:05]} 35. Kg1 {[%emt 0:01:32]} Qg4 {[%emt 0:00:44]} 36. Qd2 {[%emt 0:05:09]} Nh7 {[%emt 0:00:21]} 37. Nc3 {[%emt 0:02:43]} g5 {[%emt 0:00:23]} 38. Qd1 {[%emt 0:00:14]} gxh4 {[%emt 0:02:04]} 39. Qxg4+ {[%emt 0:00:06]} hxg4 {[%emt 0:00:02]} 40. gxh4 {[%emt 0:00:07]} f6 {[%emt 0:00:50]} 41. exf6 {[%emt 0:04:02]} Nxf6 {[%emt 0:00:43]} 42. Kg2 {[%emt 0:00:43]} Nd7 {[%emt 0:00:31]} 43. Na4 {[%emt 0:00:44]} e5 {[%emt 0:00:09]} 44. Nb6 {[%emt 0:01:21]} Nf6 {[%emt 0:00:45]} 45. dxe5 {[%emt 0:00:41]} Ne4 {[%emt 0:00:01]} 46. Nxd5 {[%emt 0:02:37]} Nxc5 {[%emt 0:01:02]} 47. Ne7+ {[%emt 0:03:46]} Kf7 {[%emt 0:00:01]} 48. Nxc6 {[%emt 0:00:04]} Ke6 {[%emt 0:00:31]} 49. h5 {[%emt 0:03:19]} Kf5 {[%emt 0:00:16]} 50. h6 {[%emt 0:00:14]} Kg6 {[%emt 0:00:25]} 51. Nd8 {[%emt 0:00:57]} Kxh6 {[%emt 0:01:04]} 52. e6 {[%emt 0:00:05]} Ne4 {[%emt 0:00:13]} 53. e7 {[%emt 0:00:17]} Nf6 {[%emt 0:00:01]} 54. Nf7+ {[%emt 0:00:18]} 1-0

[Event "Panchenko Memorial-B 2020"]
[Site "Chelyabinsk"]
[Date "2020.09.15"]
[Round "9.1"]
[White "Bodnaruk, Anastasia"]
[Black "Maltsevskaya, Aleksandra"]
[Result "1-0"]
[ECO "B12"]
[WhiteElo "2411"]
[BlackElo "2272"]
[Annotator "RC"]
[PlyCount "97"]
[EventDate "2020.09.07"]
[EventType "swiss"]
[EventCountry "RUS"]
[SourceTitle "playchess.com"]
[Source "ChessBase"]
[SourceQuality "1"]
[TimeControl "5400+30"]

1. e4 {[%emt 0:00:00]} c6 {[%emt 0:00:00]} 2. d4 {[%emt 0:00:00]} d5 {[%emt 0:00:00]} 3. e5 {[%emt 0:00:00]} Bf5 {[%emt 0:00:00]} 4. Nf3 {[%emt 0:00:01]} e6 {[%emt 0:00:00]} 5. Be2 {[%emt 0:00:14]} c5 {[%emt 0:00:01]} 6. O-O {[%emt 0:00:55]} Nc6 {[%emt 0:00:04]} 7. c3 {[%emt 0:00:51]} Bg6 {[%emt 0:00:06]} 8. Be3 {[%emt 0:01:43]} cxd4 {[%emt 0:13:37]} 9. Nxd4 {[%emt 0:01:05]} Nge7 {[%emt 0:03:13]} 10. f4 {[%emt 0:05:55]} Nxd4 {[%emt 0:02:42]} 11. cxd4 {[%emt 0:02:06]} Nc6 {[%emt 0:01:15]} 12. a3 {[%emt 0:02:31]} Be7 {[%emt 0:04:18]} 13. b4 {[%emt 0:02:55]} O-O {[%emt 0:02:22]} 14. Nc3 {[%emt 0:12:53]} Rc8 {[%emt 0:00:23]} 15. Qd2 {[%emt 0:04:16]} Qd7 {[%emt 0:12:19]} 16. Rfc1 {[%emt 0:08:39]} a6 {[%emt 0:08:13]} 17. Na4 {[%emt 0:16:12]} Nxd4 {[%emt 0:07:16]} 18. Nb6 {[%emt 0:00:21]} Rxc1+ {[%emt 0:00:05]} 19. Rxc1 {[%emt 0:00:03]} Nxe2+ {[%emt 0:00:06]} 20. Qxe2 {[%emt 0:00:05]} Qb5 {[%emt 0:00:04]} 21. Qxb5 {[%emt 0:01:18]} axb5 {[%emt 0:00:05]} 22. Nc8 {[%emt 0:09:54]} Bd8 {[%emt 0:00:06]} 23. Bc5 {[%emt 0:01:00]} Re8 {[%emt 0:00:05]} 24. Nd6 {[%emt 0:10:25]} Re7 {[%emt 0:00:06]} 25. Ba7 {[%emt 0:01:40]} Rc7 {[%emt 0:08:36]} 26. Rxc7 {[%emt 0:00:06]} Bxc7 {[%emt 0:00:03]} 27. Nxb5 {[%emt 0:00:24]} Bd8 {[%emt 0:00:05]} 28. Nd6 {[%emt 0:06:34]} b6 {[%emt 0:00:04]} 29. a4 {[%emt 0:01:47]} Bc2 {[%emt 0:02:14]} 30. a5 {[%emt 0:01:19]} bxa5 {[%emt 0:00:04]} 31. Nb7 {[%emt 0:00:04]} Be7 {[%emt 0:01:22]} 32. bxa5 {[%emt 0:00:34]} Bd3 {[%emt 0:00:04]} 33. Bc5 {[%emt 0:01:26]} Kf8 {[%emt 0:09:47]} 34. Kf2 {[%emt 0:01:08]} Ke8 {[%emt 0:00:33]} 35. Bxe7 {[%emt 0:02:03]} Kxe7 {[%emt 0:00:05]} 36. Ke3 {[%emt 0:00:37]} Ba6 {[%emt 0:01:22]} 37. Nc5 {[%emt 0:00:33]} Bb5 {[%emt 0:00:05]} 38. Kd4 {[%emt 0:01:54]} f6 {[%emt 0:14:20]} 39. a6 {[%emt 0:00:34]} g5 {[%emt 0:08:54]} 40. g3 {[%emt 0:00:07]} h6 {[%emt 0:02:19]} 41. a7 {[%emt 0:01:38]} Bc6 {[%emt 0:00:04]} 42. Na4 {[%emt 0:01:13]} gxf4 {[%emt 0:00:12]} 43. gxf4 {[%emt 0:00:05]} fxe5+ {[%emt 0:00:08]} 44. fxe5 {[%emt 0:00:17]} Kd7 {[%emt 0:00:07]} 45. Nb6+ {[%emt 0:01:14]} Kc7 {[%emt 0:00:05]} 46. Kc5 {[%emt 0:00:04]} d4 {[%emt 0:01:31]} 47. a8=Q {[%emt 0:00:11]} Bxa8 {[%emt 0:00:04]} 48. Nxa8+ {[%emt 0:00:04]} Kb7 {[%emt 0:00:05]} 49. Kxd4 {[%emt 0:00:55]} 1-0